bitfinex-derivatives/quotes_BTCF0:USTF0_20250218
["timestamp","ask_amount","ask_price","bid_price","bid_amount"]
[1739904474700,0.3608,93746.0,93737.0,0.2134436]
[1739904475295,0.3608,93738.0,93730.0,0.05267425]
[1739904475593,0.3608,93738.0,93723.0,0.6677]
[1739904475795,0.3608,93730.0,93728.0,0.34478414]
[1739904476089,0.3608,93741.0,93723.0,0.6677]
[1739904476296,0.3608,93741.0,93739.0,0.213438]
[1739904477197,0.3608,93741.0,93739.0,0.16022443]
[1739904477491,0.00016002,93743.0,93742.0,0.2134326]
[1739904479290,0.00216002,93743.0,93740.0,0.2446]
[1739904479493,0.00216002,93743.0,93731.0,0.58309213]
[1739904479697,0.3608,93736.0,93731.0,0.58309213]
[1739904480087,0.3608,93736.0,93731.0,0.52987856]
[1739904480390,0.3608,93736.0,93732.0,0.213455]
[1739904480591,0.3578,93736.0,93731.0,0.16639213]
[1739904481189,0.3588,93736.0,93731.0,0.17139213]
[1739904482592,0.3588,93736.0,93731.0,0.005]
[1739904482797,0.11508,93735.0,93731.0,0.005]
[1739904483194,0.3608,93732.0,93723.0,0.00410252]
[1739904483500,0.571275,93724.0,93717.0,0.0006]
[1739904483700,0.3608,93718.0,93712.0,0.00160045]
[1739904484001,0.11508,93717.0,93712.0,0.00160045]
[1739904484590,0.3608,93713.0,93712.0,0.00160045]
[1739904484790,0.47588,93713.0,93712.0,0.00160045]
[1739904485395,0.47488,93713.0,93712.0,0.00160045]
[1739904486002,0.47488,93713.0,93704.0,0.05219317]
[1739904486200,0.47488,93713.0,93698.0,0.2125103]
[1739904486201,0.6813,93712.0,93698.0,0.2125103]
[1739904486702,0.6813,93712.0,93699.0,0.2135293]
[1739904486893,0.6813,93712.0,93700.0,0.04]
[1739904487089,0.6813,93712.0,93700.0,0.09453305]
[1739904487695,0.3608,93705.0,93700.0,0.09453305]
[1739904489104,0.3618,93705.0,93700.0,0.09453305]
[1739904489297,0.3618,93705.0,93699.0,0.2135293]
[1739904489799,0.001,93705.0,93704.0,0.3608]
[1739904490001,0.3608,93721.0,93704.0,0.3608]
[1739904490300,0.3608,93730.0,93716.0,0.3608]
[1739904490502,0.3608,93730.0,93720.0,0.19686709]
[1739904490798,0.3608,93738.0,93725.0,0.2134707]
[1739904490988,0.3608,93738.0,93720.0,0.19686709]
[1739904490989,0.3608,93738.0,93726.0,0.2134679]
[1739904491193,0.3608,93727.0,93723.0,0.00016002]
[1739904492006,0.3608,93727.0,93725.0,0.2134709]
[1739904492199,0.3608,93727.0,93720.0,0.16042785]
[1739904492402,0.3608,93727.0,93710.0,0.19686709]
[1739904492604,0.3628,93727.0,93716.0,0.2134903]
[1739904492802,0.3628,93727.0,93712.0,0.3608]
[1739904493002,0.3628,93727.0,93719.0,0.2134841]
[1739904493507,0.3628,93727.0,93715.0,0.2134932]
[1739904493709,0.3628,93727.0,93717.0,0.2134889]
[1739904494004,0.3628,93727.0,93722.0,0.3608]
[1739904494005,0.002,93727.0,93722.0,0.3608]
[1739904494194,0.002,93727.0,93717.0,0.19686709]
[1739904494195,0.003,93727.0,93726.0,0.2134671]
[1739904494803,0.001,93727.0,93723.0,0.6762]
[1739904494999,0.001,93727.0,93726.0,0.213469]
[1739904495505,0.00016002,93741.0,93726.0,0.3]
[1739904495697,0.00016002,93741.0,93725.0,0.00068]
[1739904495902,0.00016002,93741.0,93723.0,0.6762]
[1739904496103,0.002,93727.0,93723.0,0.6762]
[1739904496404,0.002,93727.0,93726.0,0.574269]
[1739904497607,0.3608,93731.0,93723.0,0.6762]
[1739904497915,0.3608,93731.0,93724.0,1.04552]
[1739904498201,0.003,93727.0,93724.0,0.93044]
[1739904498402,0.003,93727.0,93724.0,0.87722643]
[1739904498403,0.2134697,93726.0,93724.0,0.87722643]
[1739904498605,0.3608,93731.0,93709.0,0.3608]
[1739904498606,0.2405,93730.0,93709.0,0.3608]
[1739904498801,0.2405,93730.0,93705.0,0.401]
[1739904498802,0.3608,93718.0,93705.0,0.401]
[1739904499001,0.2134922,93716.0,93701.0,0.2426]
[1739904499198,0.2134922,93716.0,93701.0,0.4561245]
[1739904499507,0.2134922,93716.0,93692.0,0.401]
[1739904499707,0.2134922,93716.0,93698.0,0.2135321]
[1739904499909,0.2134922,93716.0,93698.0,0.4052357]
[1739904500413,0.2134922,93716.0,93699.0,0.26578802]
[1739904500611,0.4163,93717.0,93699.0,0.05225782]
[1739904501629,0.3608,93706.0,93698.0,0.1917036]
[1739904501814,0.3979,93705.0,93698.0,0.1917036]
[1739904503108,0.3979,93705.0,93695.0,0.05392048]
[1739904503307,0.3979,93705.0,93689.0,0.93112]
[1739904503308,0.3608,93698.0,93689.0,0.93112]
[1739904503614,0.3608,93690.0,93689.0,0.98355348]
[1739904503813,0.3608,93690.0,93689.0,0.05315348]
[1739904504106,0.3608,93690.0,93680.0,0.19908573]
[1739904504107,0.3608,93690.0,93688.0,0.2135538]
[1739904504304,0.3608,93698.0,93688.0,0.2135538]
[1739904504502,0.36096011,93698.0,93688.0,0.16034023]
[1739904504706,0.36096011,93698.0,93688.0,0.19686709]
[1739904504904,0.001,93690.0,93689.0,0.2135533]
[1739904505512,0.00016011,93698.0,93689.0,0.2135533]
[1739904505716,0.00116011,93698.0,93688.0,0.19686709]
[1739904506209,0.00116011,93698.0,93688.0,0.41042239]
[1739904506210,0.001,93690.0,93688.0,0.41042239]
[1739904506406,0.001,93690.0,93688.0,0.2135553]
[1739904507404,0.001,93690.0,93688.0,0.16034173]
[1739904507811,0.00116011,93698.0,93690.0,0.2135506]
[1739904508112,0.00116011,93698.0,93691.0,0.2135484]
[1739904508314,0.00016011,93698.0,93691.0,0.2135484]
[1739904508608,0.00016011,93698.0,93696.0,0.2135364]
[1739904508809,0.00016011,93698.0,93697.0,0.3608]
[1739904509123,0.3608,93718.0,93697.0,0.3608]
[1739904509312,0.3608,93718.0,93704.0,0.2135184]
[1739904509621,0.3608,93718.0,93700.0,0.19686709]
[1739904509622,0.3608,93710.0,93700.0,0.19686709]
[1739904509914,0.3608,93710.0,93699.0,0.21353]
[1739904510617,0.00016011,93714.0,93695.0,0.00016011]
[1739904510618,0.00016011,93714.0,93704.0,0.3608]
[1739904511307,0.00016011,93714.0,93703.0,0.2135214]
[1739904512612,0.00016011,93714.0,93700.0,0.13133506]
[1739904513010,0.00016011,93714.0,93704.0,0.3608]
[1739904513207,0.00016011,93714.0,93707.0,0.2135107]
[1739904513415,0.00016011,93714.0,93704.0,0.3608]
[1739904513613,0.00016011,93714.0,93704.0,0.30758643]
[1739904514419,0.00016011,93714.0,93696.0,0.4098]
[1739904514420,0.3608,93706.0,93697.0,0.2135332]
[1739904514618,0.4012,93705.0,93697.0,0.2135332]
[1739904514915,0.4012,93705.0,93692.0,0.2135457]
[1739904515113,0.4012,93705.0,93694.0,0.2135414]
[1739904515312,0.2402,93704.0,93695.0,0.21369971]
[1739904515515,0.2402,93704.0,93695.0,0.00016011]
[1739904515710,0.2402,93704.0,93701.0,0.2135258]
[1739904516112,0.2402,93704.0,93696.0,0.2135359]
[1739904516413,0.3608,93702.0,93695.0,0.00016011]
[1739904516629,0.3608,93702.0,93700.0,0.16031453]
[1739904516814,0.3608,93702.0,93695.0,0.21369951]
[1739904517014,0.3608,93702.0,93695.0,0.00016011]
[1739904517218,0.3608,93702.0,93695.0,0.21369881]
[1739904517614,0.3608,93702.0,93697.0,0.2135349]
[1739904518821,0.3608,93702.0,93695.0,0.00016011]
[1739904518822,0.3608,93698.0,93695.0,0.00016011]
[1739904519715,0.3608,93698.0,93683.0,0.16051314]
[1739904519921,0.16716999,93698.0,93682.0,0.3978]
[1739904520121,0.16716999,93698.0,93685.0,0.2135624]
[1739904520324,0.16716999,93698.0,93681.0,0.41467788]
[1739904520523,0.2135405,93695.0,93681.0,0.41467788]
[1739904520819,0.16716999,93698.0,93681.0,0.41467788]
[1739904521022,0.16716999,93698.0,93682.0,0.2135691]
[1739904521023,0.38070319,93698.0,93682.0,0.2135691]
[1739904521621,0.38170319,93698.0,93682.0,0.2135691]
[1739904521822,0.16816999,93698.0,93681.0,0.41467788]
[1739904522020,0.16716999,93698.0,93690.0,0.3608]
[1739904522221,0.16816999,93698.0,93690.0,0.3608]
[1739904522617,0.38170299,93698.0,93690.0,0.30758643]
[1739904522818,0.2135378,93696.0,93683.0,0.3608]
[1739904523018,0.16816999,93698.0,93683.0,0.3608]
[1739904523219,0.38170329,93698.0,93683.0,0.3608]
[1739904523416,0.2135356,93697.0,93683.0,0.3608]
[1739904523626,0.16816999,93698.0,93684.0,0.2135646]
[1739904524427,0.2135359,93697.0,93681.0,0.05387788]
[1739904525029,0.16816999,93698.0,93681.0,0.05387788]
[1739904525619,0.2135381,93696.0,93681.0,0.00066431]
[1739904525825,0.2135381,93696.0,93680.0,0.21579194]
[1739904526025,0.13133506,93690.0,93680.0,0.00221864]
[1739904526227,0.3899,93689.0,93680.0,0.00221864]
[1739904526431,0.664,93688.0,93680.0,0.00221864]
[1739904526730,0.664,93688.0,93680.0,0.05651803]
[1739904527924,0.664,93688.0,93682.0,0.3608]
[1739904528832,0.001,93688.0,93687.0,0.3608]
[1739904529131,0.001,93688.0,93682.0,0.2135685]
[1739904529335,0.001,93688.0,93687.0,0.3608]
[1739904531530,0.001,93688.0,93686.0,0.2135598]
[1739904531832,0.001,93688.0,93686.0,0.16034623]
[1739904532223,0.001,93688.0,93687.0,0.3608]
[1739904534431,0.00016011,93694.0,93687.0,0.3608]
[1739904534634,0.001,93688.0,93687.0,0.3608]
[1739904534834,0.001,93688.0,93687.0,0.30758643]
[1739904535731,0.05254335,93712.0,93687.0,0.30758643]
[1739904535732,0.3608,93732.0,93687.0,0.66838643]
[1739904536036,0.4293,93720.0,93708.0,0.2135084]
[1739904536233,0.4293,93720.0,93710.0,0.13133506]
[1739904536428,0.4293,93720.0,93710.0,0.49213506]
[1739904536930,0.4293,93720.0,93710.0,0.13133506]
[1739904537127,0.2135,93713.0,93706.0,0.00016011]
[1739904537437,0.3608,93708.0,93706.0,0.00016011]
[1739904537833,0.3608,93708.0,93701.0,1.23922654]
[1739904538138,0.3608,93708.0,93701.0,0.30774654]
[1739904539028,0.3608,93708.0,93698.0,0.3608]
[1739904540041,0.3608,93708.0,93699.0,0.2135289]
[1739904540234,0.3608,93708.0,93700.0,0.2135276]
[1739904540442,0.3608,93708.0,93698.0,0.3608]
[1739904540834,0.3608,93708.0,93698.0,0.52111803]
[1739904541036,0.3648,93708.0,93698.0,0.52111803]
[1739904541845,0.3648,93708.0,93698.0,0.30758643]
[1739904541846,0.3638,93708.0,93698.0,0.30758643]
[1739904542034,0.3638,93708.0,93691.0,0.8897275]
[1739904542230,0.2135127,93707.0,93692.0,0.2135455]
[1739904542937,0.3608,93700.0,93692.0,0.2135455]
[1739904543340,0.3608,93700.0,93691.0,0.6755]
[1739904543636,0.3608,93700.0,93698.0,0.2135327]
[1739904543831,0.3608,93700.0,93698.0,0.16031913]
[1739904544532,0.00016011,93705.0,93691.0,0.6755]
[1739904544935,0.003,93700.0,93699.0,0.2135302]
[1739904545144,0.003,93700.0,93699.0,0.5743302]
[1739904545848,0.00016011,93705.0,93699.0,0.3608]
[1739904546141,0.3608,93710.0,93701.0,0.3608]
[1739904546346,0.3608,93710.0,93691.0,0.6755]
[1739904546736,0.2135124,93707.0,93698.0,0.2135325]
[1739904546938,0.2135124,93707.0,93698.0,0.16031893]
[1739904547440,0.004,93700.0,93698.0,0.16031893]
[1739904548440,0.004,93700.0,93699.0,0.2135305]
[1739904548637,0.003,93707.0,93699.0,0.2135305]
[1739904549747,0.003,93707.0,93697.0,0.3608]
[1739904549948,0.3608,93700.0,93693.0,0.87830654]
[1739904550146,0.4282,93699.0,93694.0,0.3608]
[1739904550341,0.4282,93699.0,93692.0,0.2135465]
[1739904551542,0.4282,93699.0,93691.0,0.4319]
[1739904551543,0.4302,93699.0,93691.0,0.4319]
[1739904552043,0.4302,93699.0,93696.0,0.2135369]
[1739904552439,0.4302,93699.0,93698.0,0.2135328]
[1739904552643,0.002,93699.0,93698.0,0.2135328]
[1739904552948,0.002,93699.0,93698.0,0.16031923]
[1739904554048,0.004,93699.0,93696.0,0.3608]
[1739904554246,0.004,93699.0,93698.0,0.2135328]
[1739904554550,0.004,93699.0,93697.0,0.43]
[1739904554751,0.004,93699.0,93697.0,0.6435328]
[1739904554946,0.004,93699.0,93698.0,0.2135328]
[1739904555256,0.003,93699.0,93698.0,0.2135328]
[1739904555845,0.003,93699.0,93691.0,0.3608]
[1739904556150,0.003,93699.0,93680.0,0.0533915]
[1739904556151,0.6296329,93698.0,93680.0,0.0533915]
[1739904556453,0.3608,93694.0,93679.0,0.21593654]
[1739904556658,0.3608,93694.0,93679.0,0.21517654]
[1739904557251,0.13133506,93690.0,93679.0,0.21517654]
[1739904557447,0.3608,93686.0,93679.0,0.00160084]
[1739904557956,0.2135738,93681.0,93679.0,0.05538519]
[1739904558153,0.2135738,93681.0,93679.0,0.00160084]
[1739904558154,1.0839,93680.0,93679.0,0.00160084]
[1739904558353,1.0839,93680.0,93670.0,0.1917036]
[1739904558554,0.3608,93677.0,93670.0,0.1917036]
[1739904558955,0.3608,93677.0,93670.0,0.24389552]
[1739904559155,0.3608,93677.0,93670.0,0.19068195]
[1739904560261,0.3608,93677.0,93668.0,0.3608]
[1739904560852,0.3678,93677.0,93668.0,0.3608]
[1739904561261,0.3608,93677.0,93668.0,0.41504897]
[1739904561462,0.3678,93677.0,93668.0,0.41504897]
[1739904562067,0.3678,93677.0,93668.0,0.05424897]
[1739904562274,0.3678,93677.0,93665.0,0.3608]
[1739904562766,0.11524,93676.0,93665.0,0.3608]
[1739904562970,0.11524,93676.0,93665.0,0.41308765]
[1739904563174,0.3678,93677.0,93665.0,0.41308765]
[1739904564364,0.007,93677.0,93667.0,0.13133506]
[1739904564568,0.007,93677.0,93675.0,0.2135838]
[1739904564770,0.4131,93680.0,93674.0,0.3608]
[1739904564969,0.4131,93680.0,93676.0,0.2135819]
[1739904565169,0.07091158,93689.0,93680.0,0.16035873]
[1739904567074,0.07791158,93689.0,93680.0,0.16035873]
[1739904567771,0.07791158,93689.0,93681.0,0.213571]
[1739904567975,0.07791158,93689.0,93682.0,0.2135689]
[1739904568179,0.07791158,93689.0,93682.0,0.16035533]
[1739904568975,0.007,93689.0,93688.0,0.2135556]
[1739904569971,0.007,93689.0,93682.0,0.3608]
[1739904570674,0.3608,93696.0,93691.0,0.2135488]
[1739904570876,0.3608,93708.0,93691.0,0.5743488]
[1739904571080,0.2135191,93705.0,93691.0,0.5743488]
[1739904571281,0.2135191,93705.0,93691.0,0.52113523]
[1739904571872,0.3608,93708.0,93691.0,0.52113523]
[1739904573374,0.00716011,93692.0,93691.0,0.52113523]
[1739904573775,0.00716011,93692.0,93691.0,0.16033523]
[1739904574181,0.00716011,93692.0,93691.0,0.10712166]
[1739904574775,0.00716011,93692.0,93691.0,0.35342166]
[1739904577385,0.00716011,93692.0,93691.0,0.2463]
[1739904577584,0.00716011,93692.0,93691.0,0.4598488]
[1739904580390,0.00716011,93692.0,93691.0,0.40663523]
[1739904581392,0.00716011,93692.0,93659.0,0.3608]
[1739904581393,0.36796011,93692.0,93659.0,0.3608]
[1739904581585,0.36796011,93692.0,93673.0,0.21363115]
[1739904581586,0.3608,93674.0,93673.0,0.21363115]
[1739904581985,0.3973,93691.0,93673.0,4.135e-05]
[1739904582185,0.3973,93691.0,93688.0,0.2135547]
[1739904582595,0.3973,93691.0,93681.0,0.2485]
[1739904582892,0.3973,93691.0,93686.0,0.21356]
[1739904583287,0.3973,93691.0,93686.0,0.16034643]
[1739904583499,0.4043,93691.0,93686.0,0.16034643]
[1739904583996,0.4043,93691.0,93687.0,0.2135572]
[1739904584193,0.4043,93691.0,93690.0,0.213551]
[1739904585490,0.4043,93691.0,93685.0,0.2135603]
[1739904585692,0.4043,93691.0,93690.0,0.213551]
[1739904585891,0.007,93691.0,93690.0,0.213551]
[1739904587195,0.3608,93700.0,93681.0,0.55608643]
[1739904587388,0.3608,93700.0,93699.0,0.2135304]
[1739904589097,0.3678,93700.0,93699.0,0.2145304]
[1739904589492,0.3678,93700.0,93699.0,0.16131683]
[1739904590199,0.007,93700.0,93699.0,0.16131683]
[1739904592201,0.007,93700.0,93699.0,0.21500524]
[1739904592503,0.007,93700.0,93699.0,0.16179167]
[1739904595494,0.007,93700.0,93699.0,0.05468841]
[1739904596503,0.007,93700.0,93699.0,0.26821881]
[1739904596702,0.007,93700.0,93699.0,0.05468841]
[1739904596997,0.007,93700.0,93692.0,0.93132]
[1739904596998,0.2135406,93695.0,93692.0,0.93132]
[1739904597205,0.3608,93693.0,93690.0,0.00016011]
[1739904597400,0.4188,93692.0,93690.0,0.00016011]
[1739904597800,0.4188,93692.0,93690.0,0.0526441]
[1739904598001,0.4188,93692.0,93690.0,0.00016011]
[1739904598205,0.4178,93692.0,93690.0,0.00016011]
[1739904598705,0.4178,93692.0,93685.0,0.16050834]
[1739904598903,0.4248,93692.0,93690.0,0.001]
[1739904599096,0.4248,93692.0,93690.0,0.05472903]
[1739904599297,0.4178,93692.0,93690.0,0.05372903]
[1739904599497,0.4248,93692.0,93690.0,0.001]
[1739904600008,0.4048,93691.0,93690.0,0.001]
[1739904600597,0.4048,93691.0,93690.0,0.05489018]
[1739904600802,0.4048,93691.0,93690.0,0.001]
[1739904601400,0.4048,93691.0,93688.0,0.2135552]
[1739904601603,0.4118,93691.0,93688.0,0.16034163]
[1739904601809,0.007,93691.0,93689.0,0.2135525]
[1739904602706,0.3608,93693.0,93682.0,0.93128]
[1739904603002,0.3608,93683.0,93682.0,0.93072]
[1739904604806,0.3608,93683.0,93682.0,0.87750643]
[1739904605008,0.574368,93683.0,93680.0,0.00160096]
[1739904605207,1.0357,93682.0,93680.0,0.00160096]
[1739904605712,1.0357,93682.0,93680.0,0.05455592]
[1739904605913,1.0357,93682.0,93680.0,0.00160096]
[1739904606712,1.0427,93682.0,93680.0,0.00160096]
[1739904607601,1.0427,93682.0,93678.0,0.00092016]
[1739904607909,1.0427,93682.0,93673.0,4.135e-05]
[1739904608110,0.3608,93674.0,93673.0,4.135e-05]
[1739904609107,0.3608,93674.0,93673.0,0.05269405]
[1739904609310,0.005,93682.0,93681.0,0.2135716]
[1739904610608,0.005,93682.0,93681.0,0.16035803]
[1739904610809,0.3658,93682.0,93681.0,0.16035803]
[1739904611201,0.3608,93682.0,93681.0,0.16035803]
[1739904612110,0.3678,93682.0,93681.0,0.16035803]
[1739904613805,0.3678,93682.0,93681.0,0.10714446]
[1739904614010,0.17739875,93682.0,93681.0,0.10714446]
[1739904615610,0.007,93682.0,93681.0,0.10714446]
[1739904616001,0.007,93682.0,93675.0,0.2415]
[1739904616210,0.007,93682.0,93679.0,0.2135757]
[1739904616405,0.007,93682.0,93681.0,0.2135716]
[1739904616811,0.007,93682.0,93681.0,0.16035803]
[1739904617016,0.007,93682.0,93675.0,0.2415]
[1739904617313,0.007,93682.0,93681.0,0.2135716]
[1739904619806,0.007,93682.0,93681.0,0.16035803]
[1739904622809,0.007,93682.0,93681.0,0.10714446]
[1739904625921,0.007,93682.0,93675.0,0.2415]
[1739904626717,0.007,93682.0,93681.0,0.2135716]
[1739904627513,0.00016011,93689.0,93688.0,0.2135556]
[1739904628715,0.00716011,93689.0,93688.0,0.2135556]
[1739904628920,0.00716011,93689.0,93688.0,0.16034203]
[1739904629324,0.00716011,93689.0,93683.0,0.2135651]
[1739904629725,0.00716011,93689.0,93685.0,0.2135614]
[1739904629920,0.00716011,93689.0,93679.0,0.13133506]
[1739904630122,0.00716011,93689.0,93687.0,0.2135571]
[1739904630823,0.00716011,93689.0,93688.0,0.2135556]
[1739904631816,0.00016011,93689.0,93688.0,0.16034203]
[1739904632021,0.00716011,93689.0,93688.0,0.16034203]
[1739904632219,0.3608,93720.0,93685.0,0.0533902]
[1739904632422,0.2134873,93718.0,93699.0,0.13133506]
[1739904632618,0.2134873,93718.0,93700.0,1.0469]
[1739904633429,0.00016011,93714.0,93700.0,1.0469]
[1739904633829,0.428,93713.0,93708.0,0.21351]
[1739904634024,0.3658,93709.0,93708.0,0.21351]
[1739904635028,0.3658,93709.0,93708.0,0.001]
[1739904635228,0.3658,93709.0,93708.0,0.05573591]
[1739904635531,0.3658,93709.0,93708.0,0.21451]
[1739904636221,0.005,93709.0,93708.0,0.26713492]
[1739904636530,0.005,93709.0,93708.0,0.05362492]
[1739904636724,0.3658,93709.0,93708.0,0.001]
[1739904637233,0.3668,93709.0,93708.0,0.001]
[1739904637934,0.3668,93709.0,93691.0,0.87770654]
[1739904638226,0.3608,93700.0,93689.0,0.21515251]
[1739904638430,0.6512,93699.0,93689.0,0.00160091]
[1739904638627,0.3608,93692.0,93689.0,0.00160091]
[1739904640032,0.3598,93692.0,93689.0,0.00160091]
[1739904640231,0.18100152,93692.0,93689.0,0.00160091]
[1739904640835,0.213551,93690.0,93689.0,0.00160091]
[1739904641028,0.2135581,93687.0,93672.0,0.20268525]
[1739904641234,0.3608,93677.0,93672.0,0.20268525]
[1739904641537,0.39726011,93689.0,93672.0,0.25519534]
[1739904641933,0.39726011,93689.0,93672.0,0.05251009]
[1739904642128,0.39726011,93689.0,93670.0,0.13133506]
[1739904642335,0.3608,93683.0,93670.0,0.13133506]
[1739904642535,0.3608,93683.0,93670.0,0.18610543]
[1739904642536,0.2462,93682.0,93670.0,0.18610543]
[1739904643838,0.2512,93682.0,93670.0,0.18610543]
[1739904644138,0.2512,93682.0,93672.0,0.16037813]
[1739904645234,0.3608,93675.0,93670.0,0.05477037]
[1739904645531,0.3998,93674.0,93667.0,0.93128]
[1739904645834,0.51488,93674.0,93667.0,0.98366555]
[1739904646033,0.3998,93674.0,93667.0,0.05294555]
[1739904646335,0.3998,93674.0,93663.0,0.5744116]
[1739904646924,0.3998,93674.0,93664.0,0.2136099]
[1739904647127,0.3998,93674.0,93665.0,0.2136078]
[1739904647329,0.3998,93674.0,93666.0,0.2136052]
[1739904647531,0.4068,93674.0,93666.0,0.2136052]
[1739904648032,0.3998,93674.0,93666.0,0.2136052]
[1739904648339,0.4068,93674.0,93666.0,0.2136052]
[1739904648531,0.4068,93674.0,93667.0,0.213603]
[1739904648837,0.4068,93674.0,93666.0,0.05215444]
[1739904649024,0.4068,93674.0,93664.0,0.001]
[1739904649337,0.11508,93673.0,93665.0,0.2136066]
[1739904649534,0.4068,93674.0,93665.0,0.26715083]
[1739904649733,0.4068,93674.0,93665.0,0.05354423]
[1739904649941,0.4068,93674.0,93664.0,0.001]
[1739904650236,0.11508,93673.0,93666.0,0.001]
[1739904650733,0.11508,93673.0,93665.0,0.05326092]
[1739904650942,0.4068,93674.0,93665.0,0.001]
[1739904651137,0.11508,93673.0,93665.0,0.001]
[1739904651642,0.12208,93673.0,93666.0,0.001]
[1739904652634,0.3904,93672.0,93666.0,0.001]
[1739904653131,0.3904,93672.0,93663.0,0.16132821]
[1739904653332,0.3904,93672.0,93665.0,0.001]
[1739904653732,0.3904,93672.0,93665.0,0.05474004]
[1739904653932,0.3904,93672.0,93666.0,0.001]
[1739904653933,0.3974,93672.0,93666.0,0.001]
[1739904654345,0.3904,93672.0,93664.0,0.2136102]
[1739904654547,0.3974,93672.0,93665.0,0.001]
[1739904654736,0.11508,93671.0,93665.0,0.2146059]
[1739904655044,0.3974,93672.0,93666.0,0.2146056]
[1739904655247,0.007,93672.0,93671.0,0.2135944]
[1739904655451,0.07091158,93682.0,93671.0,0.5743944]
[1739904655645,0.07091158,93682.0,93681.0,0.2135716]
[1739904656241,0.07091158,93682.0,93681.0,0.16028771]
[1739904657241,0.07791158,93682.0,93681.0,0.16128771]
[1739904658738,0.007,93682.0,93681.0,0.16128771]
[1739904659339,0.007,93682.0,93681.0,0.10800382]
[1739904661841,0.4259,93701.0,93688.0,0.2135556]
[1739904662043,0.3608,93712.0,93692.0,0.0533862]
[1739904662345,0.3608,93712.0,93707.0,0.2135115]
[1739904662346,0.8381,93711.0,93707.0,0.2135115]
[1739904662542,0.8381,93711.0,93708.0,0.2512]
[1739904662738,0.8381,93711.0,93708.0,0.4647096]
[1739904662960,0.3608,93712.0,93711.0,0.2135032]
[1739904663146,0.00016011,93719.0,93711.0,0.2135032]
[1739904663345,0.00016011,93719.0,93717.0,0.2134887]
[1739904663546,0.3608,93742.0,93717.0,0.2134887]
[1739904663547,0.3608,93742.0,93717.0,0.3608]
[1739904663746,0.3608,93762.0,93735.0,0.053362]
[1739904663956,0.07091158,93769.0,93756.0,0.2133995]
[1739904664248,0.00060001,93770.0,93759.0,0.13133506]
[1739904664447,0.3608,93774.0,93759.0,0.49213506]
[1739904664644,0.3608,93774.0,93756.0,0.3608]
[1739904664844,0.3608,93774.0,93757.0,0.00016002]
[1739904665044,0.3608,93774.0,93759.0,0.2133929]
[1739904665243,0.3608,93774.0,93759.0,0.16010901]
[1739904665449,0.3608,93774.0,93761.0,0.2133875]
[1739904666146,0.3608,93774.0,93757.0,0.05456077]
[1739904666147,0.3608,93765.0,93757.0,0.05456077]
[1739904666947,0.3608,93774.0,93757.0,0.00016002]
[1739904667149,0.00016002,93776.0,93770.0,0.2133672]
[1739904667348,0.07091158,93794.0,93775.0,0.3608]
[1739904667546,0.05319873,93811.0,93797.0,0.2133057]
[1739904667749,0.07091158,93817.0,93798.0,0.2133033]
[1739904667955,1.09,93828.0,93816.0,0.213264]
[1739904668250,0.07091158,93839.0,93827.0,0.3608]
[1739904668444,0.07091158,93839.0,93827.0,0.30751611]
[1739904669356,0.00015994,93842.0,93827.0,0.30751611]
[1739904669757,0.00015994,93842.0,93836.0,0.3608]
[1739904670148,0.11504,93841.0,93827.0,0.001]
[1739904670349,0.13133506,93837.0,93826.0,0.05416569]
[1739904670556,0.13133506,93837.0,93827.0,0.001]
[1739904670950,0.13133506,93837.0,93824.0,0.00015994]
[1739904671251,0.13133506,93837.0,93836.0,0.001]
[1739904671458,0.2132089,93841.0,93817.0,0.36195186]
[1739904671759,0.13133506,93830.0,93817.0,0.36195186]
[1739904672059,0.13133506,93840.0,93817.0,1.29219186]
[1739904672352,0.13133506,93830.0,93818.0,0.2132583]
[1739904672552,0.13133506,93830.0,93819.0,0.00015985]
[1739904672948,0.13133506,93830.0,93827.0,0.001]
[1739904673148,0.2132251,93834.0,93827.0,0.001]
[1739904673355,0.4273,93833.0,93827.0,0.001]
[1739904673652,0.3608,93833.0,93819.0,0.00115985]
[1739904673855,0.13133506,93829.0,93819.0,0.00115985]
[1739904674159,0.13133506,93840.0,93819.0,0.00115985]
[1739904674160,0.13133506,93850.0,93828.0,0.3608]
[1739904674349,0.11496,93840.0,93828.0,0.30751611]
[1739904674554,0.13133506,93840.0,93828.0,0.30751611]
[1739904675149,0.13133506,93850.0,93828.0,0.30751611]
[1739904675352,0.2131907,93849.0,93828.0,0.30751611]
[1739904675550,0.13133506,93850.0,93829.0,0.2132337]
[1739904676258,0.13133506,93850.0,93828.0,0.30751611]
[1739904676460,0.66070001,93858.0,93828.0,0.30751611]
[1739904676461,0.3608,93832.0,93828.0,0.001]
[1739904676753,0.66070001,93858.0,93831.0,0.3608]
[1739904676956,0.66070001,93858.0,93829.0,0.3608]
[1739904676957,0.00810181,93873.0,93857.0,0.3608]
[1739904677149,0.00810181,93873.0,93869.0,0.3608]
[1739904677350,0.00810181,93873.0,93870.0,0.3608]
[1739904677647,0.6749,93891.0,93870.0,0.30751611]
[1739904677855,0.1,93900.0,93886.0,0.3608]
[1739904678060,0.1,93900.0,93890.0,0.13133506]
[1739904678355,0.1,93900.0,93886.0,0.4059107]
[1739904678660,0.3608,93898.0,93871.0,0.00015985]
[1739904678860,0.3608,93890.0,93871.0,0.00015985]
[1739904679161,0.3949,93889.0,93880.0,0.19632115]
[1739904679354,0.3608,93890.0,93880.0,0.19632115]
[1739904679554,0.1,93900.0,93889.0,0.3608]
[1739904679949,0.29632115,93900.0,93877.0,0.3608]
[1739904680155,0.4608,93900.0,93890.0,0.04333002]
[1739904680462,0.4608,93900.0,93877.0,0.35184613]
[1739904680859,0.65712115,93900.0,93891.0,0.01666655]
[1739904681060,0.1,93900.0,93892.0,0.3608]
[1739904682760,0.1,93900.0,93899.0,0.2130757]
[1739904683168,0.1,93900.0,93898.0,0.3608]
[1739904683169,0.3608,93929.0,93910.0,0.2130498]
[1739904683462,0.3608,93929.0,93898.0,0.3608]
[1739904683463,0.3608,93929.0,93917.0,0.30751611]
[1739904684262,0.19632115,93950.0,93926.0,0.3608]
[1739904684464,0.00015976,93932.0,93930.0,0.19632115]
[1739904684658,0.00015976,93932.0,93927.0,0.2130122]